fUSD/lending_fUSD_20250320
["ID","MTS","AMOUNT","RATE_DAILY","PERIOD"]
[356435920,1742446246855,-500.0,0.00029499,2]
[356435921,1742446246864,-500.0,0.00029499,2]
[356435922,1742446246874,-500.0,0.00029499,2]
[356435923,1742446246883,-500.0,0.00029499,2]
[356435924,1742446246892,-500.0,0.00029499,2]
[356435925,1742446246901,-2525.07,0.00029499,2]
[356435926,1742446246911,-532.65,0.00029499,2]
[356435927,1742446246920,-500.0,0.00029499,2]
[356435928,1742446246929,-500.0,0.00029499,2]
[356435929,1742446246939,-573.43314522,0.00029499,2]
[356435930,1742446246948,-631.0,0.000295,5]
[356435931,1742446246957,-54921.46384964,0.000295,12]
[356435932,1742446246967,-1494182.51750533,0.000295,15]
[356435939,1742446816401,2000.0,0.00022,120]
[356435940,1742446817206,2000.0,0.00022,120]
[356435951,1742447432100,-236.0,0.00019013,2]
[356435953,1742447432110,-558.22136601,0.00019014,30]
[356435960,1742447432158,-1441.77863399,0.00019014,30]
[356435961,1742447432167,-2000.0,0.00019014,30]
[356435962,1742447432177,-284.13752746,0.00019014,30]
[356435963,1742447432217,-1715.86247254,0.00019014,30]
[356435964,1742447432226,-2000.0,0.00019014,30]
[356435965,1742447432235,-461.60638688,0.00019014,30]
[356435966,1742447432246,-765.29,0.00019014,30]
[356435967,1742447432275,-439.83347109,0.00019014,30]
[356435974,1742447438103,-524.295,0.00018914,2]
[356435975,1742447438115,-47.05674392,0.00018914,2]
[356435976,1742447438124,-333.27014203,0.00019014,30]
[356435977,1742447438133,-119.67311405,0.00020301,30]
[356435978,1742447438163,-880.32688595,0.00020301,30]
[356435979,1742447438172,-73.0862089,0.00020329,30]
[356435980,1742447438220,-926.9137911,0.00020329,30]
[356435981,1742447438230,-400.56979429,0.00020356,30]
[356435982,1742447438332,-599.43020571,0.00020356,30]
[356435985,1742447438342,-426.13815393,0.00020384,30]
[356436049,1742447440306,-573.86184607,0.00020384,30]
[356436050,1742447440316,-956.13815393,0.00020411,30]
[356436051,1742447440328,-43.86184607,0.00020411,30]
[356436052,1742447440338,-150.0,0.00020437,2]
[356436053,1742447440347,-1000.0,0.00020438,30]
[356436054,1742447440356,-1000.0,0.00020466,30]
[356436055,1742447440366,-168.90724882,0.00020493,30]
[356436056,1742447440389,-831.09275118,0.00020493,30]
[356436057,1742447440398,-1000.0,0.00020521,30]
[356436058,1742447440408,-1000.0,0.00020548,30]
[356436059,1742447440418,-1000.0,0.00020548,30]
[356436060,1742447440427,-350.0,0.00020915,2]
[356436061,1742447440436,-250.0,0.00021,2]
[356436062,1742447440446,-152.31004612,0.000218,2]
[356436063,1742447440456,-152.00018999,0.000218,2]
[356436064,1742447440465,-2000.0,0.00023014,120]
[356436065,1742447440475,-2000.0,0.00023014,120]
[356436066,1742447440484,-116.59561322,0.00023014,120]
[356436067,1742447440496,-1883.40438678,0.00023014,120]
[356436068,1742447440506,-2000.0,0.00023014,120]
[356436069,1742447440515,-2000.0,0.00023014,120]
[356436070,1742447440524,-223.54206996,0.000236,3]
[356436071,1742447440534,-223.5420698,0.000236,3]
[356436072,1742447440543,-223.5420698,0.000236,3]
[356436073,1742447440553,-223.5420698,0.00024107,3]
[356436074,1742447440563,-157.12,0.00024569,2]
[356436075,1742447440572,-223.5420698,0.00025176,4]
[356436076,1742447440581,-770.77,0.00026,2]
[356436077,1742447440591,-172.03,0.00026035,2]
[356436078,1742447440601,-223.5420698,0.00026245,4]
[356436079,1742447440610,-850.48,0.00026366,2]
[356436080,1742447440619,-2000.0,0.00026425,2]
[356436081,1742447440629,-150.0,0.00026472,7]
[356436082,1742447440638,-152.09,0.00026849,2]
[356436083,1742447440648,-223.5420698,0.00027314,4]
[356436084,1742447440657,-157.12,0.00028154,2]
[356436085,1742447440666,-939.46206958,0.00028229,2]
[356436087,1742447440675,-2043.572,0.00028239,2]
[356436089,1742447440684,-1285.429,0.00028239,2]
[356436091,1742447440694,-1426.943,0.00028239,2]
[356436093,1742447440703,-1302.381,0.00028239,2]
[356436094,1742447440712,-790.0,0.00028239,2]
[356436095,1742447440722,-4100.418,0.00028239,2]
[356436097,1742447440731,-1435.944,0.00028239,2]
[356436099,1742447440741,-916.621,0.00028239,2]
[356436101,1742447440751,-1161.002,0.00028239,2]
[356436103,1742447440760,-3968.697,0.00028239,2]
[356436104,1742447440769,-1120.385,0.00028239,2]
[356436105,1742447440779,-223.5420698,0.00028383,5]
[356436107,1742447440788,-1000.0,0.00028564,2]
[356436108,1742447440802,-153.0148466,0.00028614,4]
[356436109,1742447440811,-1000.0,0.00029,2]
[356436110,1742447440821,-19031.82671927,0.000292,2]
[356436112,1742447440831,-169.703,0.00029389,22]
[356436114,1742447440841,-411.97156954,0.00029389,2]
[356436116,1742447440850,-1000.0,0.0002939,2]
[356436117,1742447440860,-375.6537,0.0002939,2]
[356436118,1742447440870,-36416.8914,0.0002939,2]
[356436119,1742447440880,-1000.0,0.00029399,2]
[356436120,1742447440889,-153.58278198,0.00029399,2]
[356436121,1742447440899,-153.58278198,0.00029399,2]
[356436122,1742447440908,-153.58278198,0.000294,2]
[356436123,1742447440917,-153.58278198,0.000294,2]
[356436124,1742447440926,-1003.0,0.000294,2]
[356436125,1742447440935,-1069.06401924,0.000294,2]
[356436126,1742447440945,-5000.0,0.000294,2]
[356436127,1742447440955,-1475.38887154,0.000294,2]
[356436128,1742447440964,-153.58278198,0.000294,2]
[356436129,1742447440973,-223.5420698,0.00029452,5]
[356436130,1742447440982,-500.0,0.00029489,2]
[356436131,1742447440992,-500.0,0.00029498,2]
[356436132,1742447441001,-500.0,0.00029498,2]
[356436133,1742447441011,-500.0,0.00029498,2]
[356436134,1742447441021,-189.41137361,0.00029498,2]
[356436135,1742447441030,-500.0,0.00029498,2]
[356436136,1742447441040,-500.0,0.00029498,2]
[356436137,1742447441050,-500.0,0.00029498,2]
[356436138,1742447441059,-500.0,0.00029498,2]
[356436139,1742447441069,-500.0,0.00029498,2]
[356436140,1742447441078,-390.11673637,0.00029498,2]
[356436141,1742447441087,-638.64,0.00029498,2]
[356436142,1742447441097,-500.0,0.00029498,2]
[356436143,1742447441106,-170.29976033,0.00029498,2]
[356436144,1742447441115,-500.0,0.00029498,2]
[356436145,1742447441125,-500.0,0.00029498,2]
[356436146,1742447441134,-500.0,0.00029498,2]
[356436147,1742447441143,-500.0,0.00029498,2]
[356436148,1742447441153,-500.0,0.00029498,2]
[356436149,1742447441162,-500.0,0.00029498,2]
[356436150,1742447441171,-500.0,0.00029498,2]
[356436151,1742447441180,-2419.86,0.00029498,2]
[356436152,1742447441190,-500.0,0.00029498,2]
[356436153,1742447441199,-500.0,0.00029498,2]
[356436154,1742447441208,-500.0,0.00029498,2]
[356436155,1742447441218,-500.0,0.00029498,2]
[356436156,1742447441227,-500.0,0.00029498,2]
[356436157,1742447441236,-158.83208366,0.00029498,2]
[356436158,1742447441246,-500.0,0.00029498,2]
[356436159,1742447441255,-500.0,0.00029498,2]
[356436160,1742447441264,-806.0,0.00029499,5]
[356436161,1742447441273,-500.0,0.00029499,2]
[356436162,1742447441282,-500.0,0.00029499,2]
[356436163,1742447441291,-150.0,0.00029499,2]
[356436164,1742447441301,-567.1074662,0.00029499,2]
[356436165,1742447441310,-500.0,0.00029499,2]
[356436166,1742447441319,-500.0,0.00029499,2]
[356436167,1742447441328,-529.5301343,0.00029499,2]
[356436168,1742447441338,-166.5,0.00029499,2]
[356436169,1742447441347,-500.0,0.00029499,2]
[356436170,1742447441356,-500.0,0.00029499,2]
[356436171,1742447441366,-500.0,0.00029499,2]
[356436172,1742447441375,-177.51103125,0.00029499,2]
[356436173,1742447441384,-500.0,0.00029499,2]
[356436174,1742447441393,-500.0,0.00029499,2]
[356436175,1742447441402,-500.0,0.00029499,2]
[356436176,1742447441411,-500.0,0.00029499,2]
[356436177,1742447441421,-500.0,0.00029499,2]
[356436178,1742447441431,-500.0,0.00029499,2]
[356436179,1742447441439,-500.0,0.00029499,2]
[356436180,1742447441449,-500.0,0.00029499,2]
[356436181,1742447441458,-500.0,0.00029499,2]
[356436182,1742447441467,-500.0,0.00029499,2]
[356436183,1742447441477,-500.0,0.00029499,2]
[356436184,1742447441486,-500.0,0.00029499,2]
[356436185,1742447441495,-633.83299444,0.00029499,2]
[356436186,1742447441504,-500.0,0.00029499,2]
[356436187,1742447441514,-154.50268926,0.00029499,2]
[356436188,1742447441523,-500.0,0.00029499,2]
[356436189,1742447441532,-208.30246384,0.00029499,2]
[356436190,1742447441541,-204.75792373,0.00029499,2]
[356436191,1742447441550,-500.0,0.00029499,2]
[356436192,1742447441559,-500.0,0.00029499,2]
[356436193,1742447441569,-500.0,0.00029499,2]
[356436194,1742447441578,-500.0,0.00029499,2]
[356436195,1742447441587,-500.0,0.00029499,2]
[356436196,1742447441597,-634.32684863,0.00029499,2]
[356436197,1742447441605,-500.0,0.00029499,2]
[356436198,1742447441615,-500.0,0.00029499,2]
[356436199,1742447441624,-500.0,0.00029499,2]
[356436200,1742447441633,-500.0,0.00029499,2]
[356436201,1742447441642,-500.0,0.00029499,2]
[356436202,1742447441651,-125010.2,0.00029499,2]
[356436203,1742447441660,-500.0,0.00029499,2]
[356436204,1742447441670,-500.0,0.00029499,2]
[356436205,1742447441679,-560.85556553,0.00029499,2]
[356436206,1742447441688,-622.0,0.000295,5]
[356436207,1742447441697,-162.78012171,0.000295,12]
[356436208,1742447441707,-38395.05523979,0.000295,12]
[356436209,1742447441716,-13999.58209064,0.000295,15]
[356436210,1742447441729,-2623.7648764,0.000295,15]
[356436211,1742447441740,-371.42461855,0.000295,15]
[356436212,1742447441751,-291.56399421,0.000295,15]
[356436213,1742447441762,-1905.28618318,0.000295,15]
[356436214,1742447441773,-3284.44,0.000295,15]
[356436215,1742447441785,-1127.84130903,0.000295,15]
[356436229,1742447443243,-510.45,0.00029498,2]
[356436230,1742447443253,-590.89721,0.00029499,44]
[356436231,1742447443262,-434195.3435223,0.000295,15]
[356436239,1742447443641,-2363.49376483,0.000295,15]
[356436241,1742447443652,-858.20067413,0.000295,15]
[356436243,1742447443663,-50660.29928759,0.000295,15]
[356436244,1742447443674,-401.0,0.000295,15]
[356436245,1742447443686,-667.86719976,0.000295,15]
[356436246,1742447443698,-7216.64268312,0.000295,15]
[356436248,1742447446337,-560.0,0.000295,5]
[356436249,1742447446347,-1927.59058869,0.000295,15]
[356436250,1742447446358,-813.75609051,0.000295,15]
[356436259,1742447770678,-500.0,0.00013699,2]
[356436260,1742447788887,-350.0,0.00015068,2]
[356436266,1742447969602,10022.45,0.00016,2]
[356436272,1742448478868,-202.45,9.77e-05,2]
[356436273,1742448482752,-230.58829871,9.77e-05,2]
[356436276,1742448515355,-150.0,0.00025,7]
[356436277,1742448541005,-211.16617407,9.77e-05,2]
[356436281,1742448549363,-0.43932795,9.77e-05,2]
[356436282,1742448549390,-172.92462719,9.999e-05,2]
[356436297,1742448602757,-150.0,0.0001,2]
[356436316,1742448632313,-3704.88809453,0.0001,2]
[356436318,1742448632375,-8857.2,0.0001,2]
[356436319,1742448632491,-3726.0,0.0001,2]
[356436320,1742448632552,-27878.26357422,0.0001,2]
[356436321,1742448632563,-12949.94158091,0.0001,2]
[356436322,1742448632671,-852378.62742899,0.0001,2]
[356436323,1742448632683,-177207.91739104,0.0001,2]
[356436333,1742448633006,-200.0,0.0001,2]
[356436338,1742448638281,-2745.99451924,0.0001,2]
[356436339,1742448638370,-1717.70649967,0.0001,2]
[356436340,1742448638387,-1054.27225137,0.0001,2]
[356436341,1742448638476,-300.32,0.0001,2]
[356436342,1742448638488,-574.64045459,0.0001,2]
[356436343,1742448638500,-809.06749781,0.0001,2]
[356436344,1742448638511,-580.26439692,0.0001,2]
[356436345,1742448638544,-495.58180595,0.0001,2]
[356436346,1742448638555,-919.195,0.0001,2]
[356436347,1742448638603,-974.16207443,0.0001,2]
[356436359,1742448640556,-181.09745514,0.0001,2]
[356436360,1742448640568,-258.8204571,0.0001,2]
[356436361,1742448640787,-322.79658385,0.0001,2]
[356436362,1742448640846,-296413.67184554,0.0001,2]
[356436363,1742448640857,-41626.79191419,0.0001,2]
[356436364,1742448640907,-374.5915,0.0001,2]
[356436365,1742448641006,-38240.55204357,0.0001,2]
[356436366,1742448641017,-2991.1802949,0.0001,2]
[356436367,1742448641028,-3689.29345578,0.0001,2]
[356436368,1742448641040,-4019.09127962,0.0001,2]
[356436369,1742448641050,-315.6,0.0001,2]
[356436376,1742448643469,-99.99818512,0.0001,2]
[356436377,1742448644492,-38141.44025499,0.0001,2]
[356436378,1742448644520,-209.57745514,0.0001,2]
[356436385,1742448646432,-533.59496,0.0001,2]
[356436386,1742448646443,-4064.83,0.0001,2]
[356436387,1742448646492,-4284.2,0.0001,2]
[356436388,1742448646611,-783.45079787,0.0001,2]
[356436389,1742448646622,-2409.84996112,0.0001,2]
[356436390,1742448646634,-602.24,0.0001,2]
[356436398,1742448647089,-167.73673983,0.0001,2]
[356436400,1742448690684,-300.0,9.999e-05,2]
[356436401,1742448690708,-82.2592,9.999e-05,2]
[356436405,1742448760031,-300.0,0.0001,2]
[356436406,1742448762421,-567.42,0.0001,2]
[356436407,1742448768513,-227.6265,0.0001,2]
[356436408,1742448790273,-241.8265,9.95e-05,2]
[356436411,1742448848597,-287.96771623,0.0001,2]
[356436412,1742448861273,-329.97183,9.95e-05,2]
[356436413,1742448862431,-247.9543936,0.0001,2]
[356436414,1742448874284,-227.93799871,0.0001,2]
[356436415,1742448916538,-150.0,0.0001,2]
[356436416,1742448919376,-314.175,0.0001,2]
[356436417,1742448926839,-5000.0,0.0001,2]
[356436418,1742448927530,-166.79155609,0.0001,2]
[356436420,1742448931923,-8281.78638417,0.0001,2]
[356436421,1742449207086,-150.0,0.0002259,29]
[356436422,1742449336003,-153.0,0.00010999,2]
[356436423,1742449383395,-197.0,0.00010999,2]
[356436424,1742449383421,-98.629286,0.00011,2]
[356436425,1742449450100,209.83,0.00010001,2]
[356436426,1742449511291,-153.0,0.0001668,16]
[356436427,1742449546783,-51.370714,0.00011,2]
[356436428,1742449546807,-98.629286,0.00013699,2]
[356436429,1742449553969,-153.0,0.00013699,10]
[356436432,1742449596322,-153.0,0.00013699,10]
[356436434,1742449650583,-150.0,0.00013699,2]
[356436435,1742449651766,-177.5334,0.00013699,2]
[356436437,1742449663104,-73.837314,0.00013699,2]
[356436438,1742449663127,-93.899686,0.00013699,2]
[356436439,1742449664840,-159.7964,0.00013699,2]
[356436440,1742449718767,-250.538914,0.00013699,2]
[356436441,1742449718789,-231.84528,0.00013699,10]
[356436442,1742449718816,-31.939106,0.00015068,2]
[356436445,1742449769384,-150.0,0.00015068,13]
[356436446,1742449820916,-282.9097,0.00015068,13]
[356436450,1742449831508,-37.7947,0.00015068,13]
[356436451,1742449831518,-118.060894,0.00015068,2]
[356436452,1742449831527,-320.70441,0.00020068,13]
[356436453,1742449831537,-150.0,0.00021917,2]
[356436454,1742449831547,-150.0,0.00023287,2]
[356436455,1742449831556,-195.16,0.00024425,2]
[356436456,1742449831565,-150.0,0.00024657,2]
[356436457,1742449831575,-320.7044,0.00025068,13]
[356436458,1742449831584,-150.0,0.00026027,2]
[356436459,1742449831593,-500.0,0.00026194,2]
[356436460,1742449831603,-815.78,0.00026194,2]
[356436461,1742449831612,-187.33,0.00026202,2]
[356436462,1742449831621,-153.7,0.00026302,2]
[356436463,1742449831630,-1649.8042718,0.00026327,2]
[356436464,1742449831724,-718.78087629,0.00026327,2]
[356436465,1742449831736,-531.053597,0.00026327,2]
[356436466,1742449831747,-970.54093612,0.00026327,2]
[356436467,1742449831758,-123.47031879,0.00026327,2]
[356436468,1742449831768,-1000.0,0.00026357,2]
[356436469,1742449831777,-150.0,0.00026389,7]
[356436470,1742449831787,-7334.73,0.00026392,2]
[356436471,1742449831796,-200.0,0.00026424,2]
[356436472,1742449831805,-153.7,0.00026433,2]
[356436473,1742449831815,-741.23,0.0002644,2]
[356436475,1742449831824,-457.18,0.0002644,2]
[356436477,1742449831833,-8424.94740395,0.00026472,2]
[356436479,1742449831845,-1133.11323801,0.00026472,2]
[356436482,1742449831864,-14341.93935804,0.00026472,2]
[356436484,1742449831876,-180.02,0.00026475,120]
[356436486,1742449831886,-153.7,0.00026565,2]
[356436487,1742449831895,-195.16,0.00026689,2]
[356436488,1742449831905,-150.0,0.00026696,2]
[356436489,1742449831915,-153.7,0.00026696,2]
[356436490,1742449831925,-153.7,0.00026828,2]
[356436491,1742449831935,-255.89,0.00026849,2]
[356436493,1742449831945,-150.0,0.00026869,2]
[356436494,1742449831955,-864.73,0.00026871,2]
[356436495,1742449831964,-937.18,0.00026877,120]
[356436496,1742449831974,-205.27581379,0.000269,4]
[356436497,1742449831984,-153.7,0.00026959,2]
[356436498,1742449831994,-4971.22855214,0.00026993,2]
[356436500,1742449832007,-322.26793109,0.00026993,2]
[356436503,1742449832019,-6036.71773514,0.00026993,2]
[356436505,1742449832031,-1434.24613958,0.00026993,2]
[356436506,1742449832042,-417.78277955,0.00026993,2]
[356436507,1742449832053,-961.52800398,0.00026993,2]
[356436508,1742449832065,-575.10458265,0.00026993,2]
[356436509,1742449832076,-2033.399527,0.00026993,2]
[356436510,1742449832087,-330.82474887,0.00026993,2]
[356436511,1742449832097,-313.83338906,0.00027001,2]
[356436512,1742449832107,-1500.0,0.00027022,2]
[356436513,1742449832116,-194.02,0.00027075,2]
[356436514,1742449832125,-167.737,0.00027081,2]
[356436515,1742449832134,-1114.0,0.00027081,2]
[356436516,1742449832144,-153.7,0.00027091,2]
[356436517,1742449832153,-168.55,0.00027147,2]
[356436518,1742449832163,-153.7,0.00027222,2]
[356436519,1742449832173,-166.9372,0.00027297,2]
[356436520,1742449832182,-314.175,0.00027297,2]
[356436521,1742449832192,-191.2727127,0.00027297,9]
[356436522,1742449832201,-500.0,0.0002734,2]
[356436523,1742449832210,-153.7,0.00027354,2]
[356436524,1742449832220,-183.26,0.00027383,2]
[356436525,1742449832229,-394.22318303,0.00027386,2]
[356436526,1742449832244,-2660.69796968,0.00027386,2]
[356436527,1742449832254,-929.40002185,0.00027395,2]
[356436528,1742449832263,-169.703,0.00027396,16]
[356436529,1742449832273,-585.3040303,0.00027397,2]
[356436530,1742449832283,-500.0,0.00027397,2]
[356436531,1742449832292,-500.0,0.00027397,2]
[356436532,1742449832302,-500.0,0.00027397,2]
[356436533,1742449832312,-500.0,0.00027397,2]
[356436534,1742449832322,-500.0,0.00027397,2]
[356436535,1742449832331,-500.0,0.00027397,2]
[356436536,1742449832342,-330.88497817,0.00027397,2]
[356436537,1742449832353,-257.24502183,0.00027397,2]
[356436538,1742449832363,-500.0,0.00027397,2]
[356436539,1742449832372,-500.0,0.00027397,2]
[356436540,1742449832382,-1500.0,0.00027397,2]
[356436541,1742449832391,-314.45997817,0.00027397,2]
[356436542,1742449832403,-185.54002183,0.00027397,2]
[356436543,1742449832412,-471.71077503,0.00027397,2]
[356436544,1742449832422,-500.0,0.00027397,2]
[356436545,1742449832432,-500.0,0.00027397,2]
[356436546,1742449832441,-476.94755869,0.00027397,2]
[356436547,1742449832451,-500.0,0.00027397,2]
[356436548,1742449832461,-501.15819748,0.00027397,2]
[356436549,1742449832470,-509.6726901,0.00027397,2]
[356436550,1742449832480,-500.0,0.00027397,2]
[356436551,1742449832490,-150.0,0.00027397,2]
[356436552,1742449832500,-336.86496782,0.00027397,2]
[356436553,1742449832512,-177.96503218,0.00027397,2]
[356436554,1742449832522,-118.10395765,0.00027397,2]
[356436555,1742449832537,-381.89604235,0.00027397,2]
[356436556,1742449832546,-500.0,0.00027451,2]
[356436557,1742449832556,-500.0,0.00027451,2]
[356436558,1742449832566,-500.0,0.00027451,2]
[356436559,1742449832575,-500.0,0.00027451,2]
[356436560,1742449832585,-500.0,0.00027451,2]
[356436561,1742449832595,-500.0,0.00027451,2]
[356436562,1742449832605,-500.0,0.00027451,2]
[356436563,1742449832615,-522.34559862,0.00027451,2]
[356436564,1742449832624,-500.0,0.00027451,2]
[356436565,1742449832634,-500.0,0.00027451,2]
[356436566,1742449832644,-500.0,0.00027451,2]
[356436567,1742449832656,-500.0,0.00027451,2]
[356436568,1742449832666,-500.0,0.00027451,2]
[356436569,1742449832676,-500.0,0.00027451,2]
[356436570,1742449832686,-500.0,0.00027451,2]
[356436571,1742449832696,-500.0,0.00027451,2]
[356436572,1742449832706,-500.0,0.00027451,2]
[356436573,1742449832715,-500.0,0.00027451,2]
[356436574,1742449832725,-500.0,0.00027451,2]
[356436575,1742449832736,-500.0,0.00027451,2]
[356436576,1742449832746,-500.0,0.00027451,2]
[356436577,1742449832755,-500.0,0.00027451,2]
[356436578,1742449832765,-500.0,0.00027452,2]
[356436579,1742449832775,-322.95,0.00027452,2]
[356436580,1742449832784,-500.0,0.00027452,2]
[356436581,1742449832793,-345.78580029,0.00027452,2]
[356436582,1742449832803,-637.64758497,0.00027452,2]
[356436583,1742449832812,-153.7,0.00027485,2]
[356436584,1742449832823,-507.15443276,0.00027496,5]
[356436585,1742449832832,-500.0,0.00027506,2]
[356436586,1742449832842,-500.0,0.00027506,2]
[356436587,1742449832852,-245.80054101,0.00027561,2]
[356436591,1742449837426,-254.19945899,0.00027561,2]
[356436592,1742449837436,-500.0,0.00027561,2]
[356436593,1742449837446,-956.44,0.00027589,2]
[356436594,1742449837456,-780.08,0.00027589,2]
[356436595,1742449837465,-895.73,0.00027603,2]
[356436596,1742449837475,-392.55054101,0.00027608,5]
[356436597,1742449837486,-110.95569698,0.00027608,5]
[356436598,1742449837496,-392.05603735,0.00027616,2]
[356436599,1742449837508,-107.94396265,0.00027616,2]
[356436600,1742449837518,-500.0,0.00027616,2]
[356436601,1742449837528,-153.7,0.00027617,2]
[356436602,1742449837538,-500.0,0.00027671,2]
[356436603,1742449837548,-500.0,0.00027671,2]
[356436604,1742449837558,-500.0,0.00027726,2]
[356436605,1742449837568,-500.0,0.00027726,2]
[356436606,1742449837577,-436.47268163,0.0002778,2]
[356436607,1742449837587,-500.0,0.0002778,2]
[356436608,1742449837597,-500.0,0.00027835,2]
[356436609,1742449837607,-500.0,0.0002789,2]
[356436610,1742449837617,-205.27581378,0.00027943,4]
[356436611,1742449837627,-500.0,0.00027945,2]
[356436612,1742449837637,-59.97639377,0.00028,2]
[356436613,1742449837650,-289.85077044,0.00028,2]
[356436614,1742449837662,-359.52,0.00028141,120]
[356436615,1742449837673,-995.34,0.00028362,2]
[356436616,1742449837684,-995.34,0.00028436,2]
[356436617,1742449837695,-174.10387805,0.00028485,2]
[356436618,1742449837706,-8519.11979,0.00028485,2]
[356436656,1742449839720,-501.18848618,0.00028485,2]
[356436663,1742449840229,-236.50344577,0.00028485,2]
[356436664,1742449840239,-500.0,0.000285,7]
[356436665,1742449840249,-5.47942394,0.000285,7]
[356436666,1742449840264,-506.12057606,0.000285,7]
[356436667,1742449840274,-500.0,0.000285,7]
[356436668,1742449840283,-500.0,0.000285,7]
[356436669,1742449840292,-500.0,0.000285,7]
[356436670,1742449840302,-336.35528316,0.000285,7]
[356436671,1742449840313,-163.64471684,0.000285,7]
[356436672,1742449840322,-500.0,0.000285,7]
[356436673,1742449840333,-500.0,0.000285,7]
[356436674,1742449840344,-500.0,0.000285,7]
[356436675,1742449840355,-500.0,0.000285,7]
[356436676,1742449840364,-500.0,0.000285,7]
[356436677,1742449840374,-500.0,0.000285,7]
[356436678,1742449840384,-500.0,0.000285,7]
[356436679,1742449840393,-500.0,0.000285,7]
[356436680,1742449840403,-500.0,0.000285,7]
[356436681,1742449840413,-500.0,0.000285,7]
[356436682,1742449840422,-500.0,0.000285,7]
[356436683,1742449840432,-500.0,0.000285,7]
[356436684,1742449840442,-500.0,0.000285,7]
[356436685,1742449840452,-500.0,0.000285,7]
[356436686,1742449840462,-500.0,0.000285,7]
[356436687,1742449840471,-500.0,0.000285,7]
[356436688,1742449840480,-500.0,0.000285,7]
[356436689,1742449840489,-500.0,0.000285,7]
[356436690,1742449840498,-500.0,0.000285,7]
[356436691,1742449840508,-500.0,0.000285,7]
[356436692,1742449840517,-500.0,0.000285,7]
[356436693,1742449840527,-500.0,0.000285,7]
[356436694,1742449840536,-500.0,0.000285,7]
[356436695,1742449840546,-500.0,0.000285,7]
[356436696,1742449840555,-500.0,0.000285,7]
[356436697,1742449840565,-500.0,0.000285,7]
[356436698,1742449840574,-500.0,0.000285,7]
[356436699,1742449840584,-346.83,0.000285,7]
[356436700,1742449840593,-500.0,0.000285,7]
[356436701,1742449840602,-204.06848755,0.000285,7]
[356436702,1742449840614,-32.60151245,0.000285,7]
[356436703,1742449840624,-771.42715548,0.00028511,2]
[356436706,1742449842635,-223.91284452,0.00028511,2]
[356436707,1742449842645,-983.79746155,0.00028585,2]
[356436715,1742449843141,-11.54253845,0.00028585,2]
[356436716,1742449843151,-429.0654167,0.00028614,4]
[356436717,1742449843160,-995.34,0.0002866,2]
[356436718,1742449843170,-485.8217,0.00028708,2]
[356436719,1742449843180,-995.34,0.00028735,2]
[356436720,1742449843189,-197.3576475,0.00028743,2]
[356436721,1742449843199,-500.0,0.00028744,2]
[356436722,1742449843209,-500.0,0.00028744,2]
[356436723,1742449843218,-500.0,0.00028744,2]
[356436724,1742449843228,-531.16661885,0.00028744,2]
[356436725,1742449843237,-500.0,0.00028744,2]
[356436726,1742449843247,-500.0,0.00028744,2]
[356436727,1742449843257,-500.0,0.00028744,2]
[356436728,1742449843266,-500.0,0.00028744,2]
[356436729,1742449843276,-33965.85881083,0.00028744,2]
[356436732,1742449845705,-286.21839978,0.00028744,2]